bitfinex-derivatives/quotes_SOLF0:USTF0_20241215
["timestamp","ask_amount","ask_price","bid_price","bid_amount"]
[1734256820258,1.96,219.33,219.29,5.10287766]
[1734256820455,1.96,219.33,219.26,6.39080568]
[1734256820660,2.2805,219.32,219.27,5.10061718]
[1734256820867,2.2805,219.32,219.26,6.39080568]
[1734256821060,2.2805,219.32,219.28,5.10084054]
[1734256821255,2.2805,219.32,219.26,6.39080568]
[1734256821460,2.2805,219.32,219.27,5.09798691]
[1734256821760,2.2805,219.32,219.26,6.39080568]
[1734256821761,2.2805,219.32,219.28,5.09798691]
[1734256821950,2.2805,219.32,219.26,11.73486666]
[1734256822259,2.2805,219.32,219.27,5.09658597]
[1734256822458,2.2805,219.32,219.26,11.73486666]
[1734256822650,2.2805,219.32,219.27,5.09417991]
[1734256822857,8.67130568,219.32,219.26,11.73486666]
[1734256823056,8.67130568,219.32,219.27,5.09420515]
[1734256823256,8.67130568,219.32,219.26,11.73486666]
[1734256823457,8.67130568,219.32,219.27,5.09255941]
[1734256823756,8.67130568,219.32,219.26,11.73486666]
[1734256824156,8.67130568,219.32,219.27,5.09228193]
[1734256824356,8.67130568,219.32,219.26,11.73486666]
[1734256824558,8.67130568,219.32,219.27,5.09066671]
[1734256824759,8.67130568,219.32,219.26,11.73486666]
[1734256824952,8.67130568,219.32,219.27,5.09067295]
[1734256825155,8.67130568,219.32,219.26,6.39080568]
[1734256825358,2.2806,219.31,219.26,6.39080568]
[1734256826757,4.2405,219.33,219.26,2.2811]
[1734256826962,4.2405,219.33,219.28,6.39080568]
[1734256828358,2.2805,219.33,219.28,6.39080568]
[1734256828559,1.96,219.32,219.28,6.39080568]
[1734256829555,1.96,219.32,219.28,2.2809]
[1734256829755,1.96,219.32,219.25,5.60690149]
[1734256829756,1.96,219.32,219.3,6.39080568]
[1734256830656,67.17573639,219.38,219.3,6.39080568]
[1734256830857,2.2796,219.41,219.37,6.39080568]
[1734256831164,1.96,219.42,219.35,6.39080568]
[1734256831165,8.35080568,219.42,219.35,6.39080568]
[1734256831360,2.2797,219.4,219.35,6.39080568]
[1734256834365,2.2797,219.4,219.34,2.2803]
[1734256834663,2.2797,219.4,219.34,8.67110568]
[1734256835261,4.2396,219.42,219.35,2.2802]
[1734256835456,8.35080568,219.42,219.35,2.2802]
[1734256835859,8.35080568,219.42,219.34,6.39080568]
[1734256836067,2.2797,219.4,219.34,8.67110568]
[1734256837261,1.96,219.42,219.36,6.39080568]
[1734256837661,1.96,219.41,219.36,6.39080568]
[1734256838665,1.96,219.41,219.37,2.28]
[1734256838967,8.67020568,219.43,219.37,2.28]
[1734256839171,1.96,219.41,219.37,2.28]
[1734256846174,1.96,219.41,219.38,2.2799]
[1734256848568,2.2795,219.42,219.38,2.2799]
[1734256848765,4.2395,219.42,219.38,2.2799]
[1734256849573,1.96,219.42,219.38,2.2799]
[1734256851174,4.2395,219.42,219.37,5.43712113]
[1734256851370,1.96,219.42,219.33,1.5097]
[1734256851579,8.35080568,219.42,219.34,11.48089426]
[1734256851779,8.35080568,219.42,219.35,5.09008858]
[1734256851980,8.35080568,219.42,219.34,6.39080568]
[1734256852380,2.2799,219.38,219.34,11.77750671]
[1734256852679,1.96,219.37,219.34,11.77750671]
[1734256854981,1.96,219.37,219.34,5.38670103]
[1734256855184,1.96,219.37,219.34,11.77750671]
[1734256858284,1.96,219.37,219.34,5.38670103]
[1734256860397,4.24,219.37,219.33,3.79]
[1734256860593,4.24,219.37,219.33,10.18080568]
[1734256861499,4.24,219.37,219.33,13.37341142]
[1734256861796,4.24,219.37,219.33,11.86371142]
[1734256863094,4.24,219.37,219.31,1.5045]
[1734256863095,2.2802,219.35,219.31,2.2806]
[1734256863295,6.39080568,219.36,219.3,6.39080568]
[1734256863696,2.2804,219.33,219.31,5.09568464]
[1734256864003,4.2404,219.33,219.28,8.67160568]
[1734256864299,4.2404,219.33,219.29,10.47428869]
[1734256864500,4.2404,219.33,219.3,5.09664962]
[1734256864702,4.2404,219.33,219.29,5.37763907]
[1734256864898,4.2404,219.33,219.3,5.09550526]
[1734256865194,4.2404,219.33,219.29,5.37763907]
[1734256865402,4.2404,219.33,219.3,5.09579751]
[1734256865595,4.2404,219.33,219.29,11.76844475]
[1734256865801,4.2404,219.33,219.3,5.0957352]
[1734256866001,4.2404,219.33,219.29,11.76844475]
[1734256866302,4.2404,219.33,219.3,5.0956265]
[1734256866501,4.2404,219.33,219.29,11.76844475]
[1734256866898,4.2404,219.33,219.3,5.09643582]
[1734256867098,4.2404,219.33,219.31,5.09643582]
[1734256867296,4.2404,219.33,219.29,11.76844475]
[1734256867602,4.2404,219.33,219.3,5.09693291]
[1734256867805,4.2404,219.33,219.31,5.09693291]
[1734256867999,4.2404,219.33,219.29,11.76844475]
[1734256868302,4.2404,219.33,219.3,5.09692961]
[1734256868498,4.2404,219.33,219.31,5.09692961]
[1734256868795,4.2404,219.33,219.29,14.04924475]
[1734256869000,4.2404,219.33,219.3,5.09729571]
[1734256869193,4.2404,219.33,219.31,5.09729571]
[1734256869395,4.2404,219.33,219.3,6.39080568]
[1734256869602,4.2404,219.33,219.31,5.09628391]
[1734256869802,4.2404,219.33,219.3,6.39080568]
[1734256869998,4.2404,219.33,219.31,5.0962252]
[1734256870199,4.2404,219.33,219.3,6.39080568]
[1734256870400,4.2404,219.33,219.31,5.09701337]
[1734256870601,4.2404,219.33,219.3,6.39080568]
[1734256870806,4.2404,219.33,219.31,5.09698022]
[1734256871006,4.2404,219.33,219.3,6.39080568]
[1734256871203,4.2404,219.33,219.31,5.0969042]
[1734256871404,4.2404,219.33,219.32,5.09781954]
[1734256871904,1.96,219.33,219.3,6.39080568]
[1734256872106,1.96,219.33,219.31,5.09785169]
[1734256872405,1.96,219.33,219.32,5.09801139]
[1734256873207,1.96,219.33,219.31,2.2806]
[1734256873406,1.96,219.33,219.32,11.48965188]
[1734256873905,2.2801,219.36,219.32,11.48965188]
[1734256874106,1.96,219.35,219.33,5.0988462]
[1734256874306,1.96,219.35,219.32,6.39080568]
[1734256874507,1.96,219.35,219.33,5.09873431]
[1734256874710,1.96,219.35,219.32,6.39080568]
[1734256875003,1.96,219.35,219.33,5.09868612]
[1734256875208,1.96,219.35,219.32,6.39080568]
[1734256875409,1.96,219.35,219.33,5.09860627]
[1734256875709,1.96,219.35,219.32,6.39080568]
[1734256876611,1.96,219.35,219.3,8.67150568]
[1734256876910,1.96,219.35,219.31,5.09906528]
[1734256877210,1.96,219.35,219.32,5.09906528]
[1734256877407,1.96,219.35,219.3,8.67150568]
[1734256877610,1.96,219.35,219.31,5.09889015]
[1734256877806,1.96,219.35,219.32,5.09889015]
[1734256878006,1.96,219.35,219.3,8.67150568]
[1734256878210,1.96,219.35,219.31,5.09828576]
[1734256878408,1.96,219.35,219.3,8.67150568]
[1734256878409,1.96,219.35,219.32,5.09828576]
[1734256878608,1.96,219.35,219.33,5.09828576]
[1734256878908,1.96,219.35,219.3,8.67150568]
[1734256879209,1.96,219.35,219.31,5.09835178]
[1734256879411,1.96,219.35,219.32,5.09835178]
[1734256879638,1.96,219.35,219.3,8.67150568]
[1734256880111,2.2803,219.34,219.31,5.09837769]
[1734256880410,1.96,219.35,219.32,5.09837769]
[1734256880609,64.26122344,219.45,219.33,2.2804]
[1734256880810,6.39080568,219.4,219.34,6.39080568]
[1734256881205,4.2398,219.39,219.34,6.39080568]
[1734256888617,1.96,219.38,219.34,6.39080568]
[1734256889721,1.96,219.38,219.35,5.09795419]
[1734256890019,1.96,219.38,219.34,6.39080568]
[1734256890219,4.2399,219.38,219.34,6.39080568]
[1734256891319,4.2399,219.38,219.35,5.10274943]
[1734256891526,4.2399,219.38,219.34,6.39080568]
[1734256892016,4.2399,219.38,219.35,5.10295015]
[1734256892221,1.96,219.38,219.3,2.9079]
[1734256892428,1.96,219.38,219.31,5.10370105]
[1734256892429,6.39080568,219.36,219.31,5.10370105]
[1734256892720,6.39080568,219.36,219.32,5.10370105]
[1734256892923,6.39080568,219.36,219.33,5.10370105]
[1734256893118,6.39080568,219.36,219.29,5.37763907]
[1734256893418,6.39080568,219.36,219.3,5.10436747]
[1734256893621,6.39080568,219.36,219.31,5.10436747]
[1734256893817,6.39080568,219.36,219.32,5.10436747]
[1734256894014,6.39080568,219.36,219.33,5.10436747]
[1734256894213,6.39080568,219.36,219.29,5.37763907]
[1734256894411,2.2804,219.34,219.3,5.10506335]
[1734256894615,4.2404,219.34,219.31,5.10506335]
[1734256894819,4.2404,219.34,219.32,5.10506335]
[1734256895016,4.2404,219.34,219.33,5.10506335]
[1734256895236,4.2401,219.37,219.33,5.10506335]
[1734256895424,4.2401,219.37,219.34,5.10506335]
[1734256895620,1.96,219.37,219.32,6.39080568]
[1734256895821,1.96,219.37,219.33,5.10528481]
[1734256896022,1.96,219.37,219.34,5.10528481]
[1734256896217,1.96,219.37,219.32,6.39080568]
[1734256896425,1.96,219.37,219.33,5.10781131]
[1734256896619,1.96,219.37,219.32,6.39080568]
[1734256896620,4.24,219.37,219.34,5.10781131]
[1734256896821,4.24,219.37,219.32,6.39080568]
[1734256897127,4.24,219.37,219.33,5.10816959]
[1734256897320,4.24,219.37,219.34,5.10846197]
[1734256897522,4.24,219.37,219.32,6.39080568]
[1734256897822,4.24,219.37,219.33,5.10849103]
[1734256898125,4.24,219.37,219.34,5.10849103]
[1734256898424,4.24,219.37,219.32,6.39080568]
[1734256898724,4.24,219.37,219.33,5.10888398]
[1734256898924,4.24,219.37,219.34,5.10888398]
[1734256899125,4.24,219.37,219.32,6.39080568]
[1734256899425,4.24,219.37,219.33,5.10873662]
[1734256899722,4.24,219.37,219.34,5.10873662]
[1734256900019,4.24,219.37,219.32,6.39080568]
[1734256900224,4.24,219.37,219.33,5.10821207]
[1734256900423,4.24,219.37,219.34,5.10821207]
[1734256900624,4.24,219.37,219.32,6.39080568]
[1734256900824,4.24,219.37,219.33,5.10835792]
[1734256901020,4.24,219.37,219.34,5.10835792]
[1734256901221,4.24,219.37,219.32,6.39080568]
[1734256901420,4.24,219.37,219.33,5.10814326]
[1734256901717,4.24,219.37,219.32,6.39080568]
[1734256901923,4.24,219.37,219.33,5.10690144]
[1734256902124,4.24,219.37,219.32,6.39080568]
[1734256902424,4.24,219.37,219.33,5.10685534]
[1734256902624,4.24,219.37,219.34,5.10685534]
[1734256902824,4.24,219.37,219.32,8.67130568]
[1734256903027,2.28,219.37,219.33,5.10696209]
[1734256903325,2.28,219.37,219.34,5.10696209]
[1734256903623,2.28,219.37,219.32,8.67130568]
[1734256903821,2.28,219.37,219.33,5.10705506]
[1734256904022,2.28,219.37,219.34,5.10705506]
[1734256904224,2.28,219.37,219.32,8.67130568]
[1734256904627,2.28,219.37,219.33,5.10729826]
[1734256904840,2.28,219.37,219.34,5.10729826]
[1734256905027,2.28,219.37,219.32,8.67130568]
[1734256905227,2.28,219.37,219.33,5.10735317]
[1734256905430,2.28,219.37,219.34,5.10735317]
[1734256905728,2.28,219.37,219.35,5.10735317]
[1734256905928,2.28,219.37,219.32,8.67130568]
[1734256906130,2.28,219.37,219.33,5.10782534]
[1734256906326,2.28,219.37,219.34,5.10782534]
[1734256906527,2.28,219.37,219.35,5.10782534]
[1734256906732,2.28,219.37,219.32,8.67130568]
[1734256906930,2.28,219.37,219.33,5.10797872]
[1734256907129,2.28,219.37,219.34,5.10797872]
[1734256907334,2.28,219.37,219.35,5.10797872]
[1734256907632,2.28,219.37,219.32,8.67130568]
[1734256907830,1.96,219.38,219.33,7.388257]
[1734256908028,1.96,219.38,219.34,5.107857]
[1734256908228,1.96,219.38,219.35,5.107857]
[1734256908429,1.96,219.38,219.33,2.2804]
[1734256908632,1.96,219.38,219.34,5.10800012]
[1734256908927,1.96,219.38,219.35,5.10800012]
[1734256909124,1.96,219.38,219.33,2.2804]
[1734256909331,1.96,219.38,219.34,5.10862785]
[1734256909632,1.96,219.38,219.35,5.10862785]
[1734256909832,4.2399,219.38,219.32,8.67130568]
[1734256910027,4.2399,219.38,219.33,5.10863815]
[1734256910331,4.2399,219.38,219.34,5.10863815]
[1734256910531,4.2399,219.38,219.35,5.10863815]
[1734256910733,4.2399,219.38,219.32,8.67130568]
[1734256910931,4.2399,219.38,219.33,5.10921053]
[1734256911126,4.2399,219.38,219.34,5.10921053]
[1734256911332,4.2399,219.38,219.35,5.10921053]
[1734256911535,4.2399,219.38,219.32,8.67130568]
[1734256911728,4.2399,219.38,219.33,5.10945674]
[1734256911928,4.2399,219.38,219.34,5.10945674]
[1734256912125,4.2399,219.38,219.35,5.10945674]
[1734256912329,4.2399,219.38,219.32,8.67130568]
[1734256912532,4.2399,219.38,219.33,5.10925661]
[1734256912833,4.2399,219.38,219.34,5.10925661]
[1734256913032,4.2399,219.38,219.32,8.67130568]
[1734256913228,4.2399,219.38,219.33,5.10927924]
[1734256913434,4.2399,219.38,219.34,5.10927924]
[1734256913633,4.2399,219.38,219.32,8.67130568]
[1734256913830,4.2399,219.38,219.33,5.10941904]
[1734256914029,2.28,219.37,219.34,5.10941904]
[1734256914233,2.28,219.37,219.31,2.2806]
[1734256914538,8.67080568,219.37,219.32,5.10894556]
[1734256914832,8.67080568,219.37,219.33,5.10894556]
[1734256915036,8.67080568,219.37,219.34,5.10894556]
[1734256915336,8.67080568,219.37,219.31,2.2806]
[1734256915638,8.67080568,219.37,219.32,5.10898621]
[1734256915836,8.67080568,219.37,219.33,5.10898621]
[1734256915837,2.2801,219.36,219.33,5.10898621]
[1734256916038,2.2801,219.36,219.34,5.10898621]
[1734256916337,2.2801,219.36,219.31,2.2806]
[1734256918835,2.2801,219.36,219.32,8.67130568]
[1734256920438,2.2801,219.36,219.33,5.10936677]
[1734256920643,2.2801,219.36,219.34,5.10936677]
[1734256920842,2.2801,219.36,219.35,5.10867687]
[1734256922741,2.9832,219.43,219.35,5.10867687]
[1734256923039,1.96,219.42,219.36,11.49948255]
[1734256923240,1.96,219.42,219.37,5.10867687]
[1734256923459,1.96,219.42,219.36,6.39080568]
[1734256923738,1.96,219.41,219.37,5.10898495]
[1734256923942,4.2396,219.41,219.38,5.10898495]
[1734256924138,4.2396,219.41,219.39,5.10898495]
[1734256924442,4.2396,219.41,219.36,6.39080568]
[1734256924642,4.2396,219.41,219.37,5.10701781]
[1734256924845,4.2396,219.41,219.38,5.10701781]
[1734256925041,4.2396,219.41,219.36,6.39080568]
[1734256925344,4.2396,219.41,219.37,5.10697163]
[1734256925543,4.2396,219.41,219.38,5.10697163]
[1734256925839,4.2396,219.41,219.36,6.39080568]
[1734256926045,4.2396,219.41,219.37,5.10650211]
[1734256926245,1.96,219.4,219.35,8.67100568]
[1734256926445,1.96,219.4,219.36,5.10647398]
[1734256926640,1.96,219.4,219.37,5.10647398]
[1734256926840,1.96,219.4,219.38,5.10627418]
[1734256927045,1.96,219.4,219.35,2.2802]
[1734256927246,1.96,219.4,219.36,5.10588739]
[1734256927446,1.96,219.4,219.35,2.2802]
[1734256927646,1.96,219.4,219.36,5.10553995]
[1734256927847,1.96,219.4,219.35,2.2802]
[1734256928144,1.96,219.4,219.36,5.10559392]
[1734256928445,1.96,219.4,219.35,2.2802]
[1734256928640,1.96,219.4,219.36,5.10546857]
[1734256928846,1.96,219.4,219.35,2.2802]
[1734256929048,1.96,219.4,219.36,5.10546173]
[1734256929238,1.96,219.4,219.35,2.2802]
[1734256929443,1.96,219.4,219.36,11.49571148]
[1734256929639,1.96,219.4,219.36,6.39080568]
[1734256931948,1.96,219.4,219.36,8.67080568]
[1734256932146,6.39080568,219.43,219.36,6.39080568]
[1734256932348,1.96,219.42,219.37,5.1026153]
[1734256932549,1.96,219.42,219.36,6.39080568]
[1734256932747,1.5262,219.49,219.38,2.2799]
[1734256932940,6.39080568,219.44,219.38,2.2799]
[1734256933241,1.96,219.44,219.38,8.67070568]
[1734256934146,6.39080568,219.43,219.36,8.67090568]
[1734256934345,6.39080568,219.43,219.37,5.10136166]
[1734256934550,6.39080568,219.43,219.36,8.67090568]
[1734256934847,6.39080568,219.43,219.37,5.10107374]
[1734256935145,6.39080568,219.43,219.36,8.67090568]
[1734256935343,6.39080568,219.43,219.37,5.10044131]
[1734256935647,2.2796,219.41,219.38,5.10044131]
[1734256935846,2.2796,219.41,219.36,8.67090568]
[1734256936050,2.2796,219.41,219.37,5.10074268]
[1734256936248,2.2796,219.41,219.38,5.10074268]
[1734256936447,2.2796,219.41,219.36,8.67090568]
[1734256936674,2.2796,219.41,219.37,5.10021099]
[1734256936950,2.2796,219.41,219.38,5.10021099]
[1734256937149,2.2796,219.41,219.36,8.67090568]
[1734256937351,2.2796,219.41,219.37,5.09969897]
[1734256937647,2.2796,219.41,219.38,5.09969897]
[1734256937949,2.2796,219.41,219.36,8.67090568]
[1734256938143,2.2796,219.41,219.37,5.09988025]
[1734256938144,2.2799,219.38,219.37,5.09988025]
[1734256939150,2.2799,219.38,219.33,2.2803]
[1734256939151,2.28,219.37,219.33,2.2803]
[1734256939352,2.28,219.37,219.34,5.10143779]
[1734256939551,2.28,219.37,219.35,5.10143779]
[1734256939749,2.28,219.37,219.36,5.10143779]
[1734256940944,2.28,219.37,219.36,5.10145976]
[1734256943052,2.2799,219.38,219.36,5.10145976]
[1734256943289,1.96,219.4,219.37,5.10145976]
[1734256943552,1.96,219.4,219.35,6.39080568]
[1734256943748,1.96,219.4,219.36,5.10117749]
[1734256943951,1.96,219.4,219.37,5.10117749]
[1734256944252,1.96,219.4,219.38,5.10117749]
[1734256944455,1.96,219.4,219.35,6.39080568]
[1734256944653,4.2398,219.4,219.36,7.38094333]
[1734256944856,61.51137972,219.47,219.37,11.49164901]
[1734256945056,6.39080568,219.45,219.38,5.10084333]
[1734256945352,2.2796,219.42,219.39,5.10053362]
[1734256945544,2.2796,219.42,219.32,78.08201566]
[1734256945545,1.96,219.42,219.35,6.39080568]
[1734256945745,1.96,219.42,219.36,5.10081294]
[1734256945956,1.96,219.42,219.35,6.39080568]
[1734256945957,1.96,219.42,219.37,5.10081294]
[1734256946150,1.96,219.42,219.38,5.10081294]
[1734256946350,1.96,219.42,219.35,6.39080568]
[1734256946548,1.96,219.42,219.36,5.10083956]
[1734256946853,2.2796,219.41,219.37,5.10083956]
[1734256947153,2.2796,219.41,219.38,5.10083956]
[1734256947350,2.2796,219.41,219.36,2.2801]
[1734256947551,2.2796,219.41,219.37,5.10054706]
[1734256947751,2.2796,219.41,219.38,5.10054706]
[1734256947947,2.2796,219.41,219.36,2.2801]
[1734256948152,2.2796,219.41,219.37,5.10064762]
[1734256948354,2.2796,219.41,219.38,5.10064762]
[1734256948555,2.2796,219.41,219.36,2.2801]
[1734256948755,2.2796,219.41,219.37,5.10085199]
[1734256948954,2.2796,219.41,219.38,5.10085199]
[1734256949155,2.2796,219.41,219.36,2.2801]
[1734256949348,2.2796,219.41,219.37,5.10108876]
[1734256949552,1.96,219.42,219.36,2.2801]
[1734256949764,1.96,219.42,219.37,11.49151116]
[1734256949958,1.96,219.42,219.37,6.39080568]
[1734256950352,1.96,219.42,219.39,6.39080568]
[1734256951153,1.96,219.42,219.4,2.2796]
[1734256951348,8.67000568,219.46,219.4,2.2796]
[1734256951553,1.96,219.45,219.41,6.39080568]
[1734256953996,2.2792,219.46,219.41,6.39080568]
[1734256953997,4.2392,219.46,219.41,6.39080568]
[1734256954173,4.2392,219.46,219.4,2.2796]
[1734256954174,10.63000568,219.46,219.4,2.2796]
[1734256954363,6.39080568,219.44,219.38,8.67060568]
[1734256955668,8.67010568,219.44,219.38,8.67060568]
[1734256957662,8.67010568,219.44,219.39,5.0938802]
[1734256957867,8.67010568,219.44,219.38,8.67060568]
[1734256958077,8.67010568,219.44,219.39,5.09385726]
[1734256958265,8.67010568,219.44,219.4,5.09381449]
[1734256958465,8.67010568,219.44,219.39,2.2798]
[1734256958665,2.2793,219.44,219.4,5.09345851]
[1734256958967,2.2793,219.44,219.39,2.2798]
[1734256959163,2.2793,219.44,219.4,5.09374632]
[1734256959364,2.2793,219.44,219.39,2.2798]
[1734256959566,2.2793,219.44,219.4,5.09411473]
[1734256959869,2.2793,219.44,219.39,2.2798]
[1734256960065,2.2793,219.44,219.4,5.09412873]
[1734256960265,2.2793,219.44,219.39,2.2798]
[1734256960496,2.2793,219.44,219.4,5.09452368]
[1734256960666,2.2793,219.44,219.39,2.2798]
[1734256960870,2.2793,219.44,219.4,5.09443707]
[1734256961070,2.2793,219.44,219.39,2.2798]
[1734256963470,2.2793,219.44,219.4,5.09367315]
[1734256963690,2.2793,219.44,219.39,2.2798]
[1734256963691,6.39080568,219.42,219.23,74.96968708]
[1734256963885,6.39080568,219.34,219.28,2.2809]
[1734256964074,8.35080568,219.34,219.3,5.09604366]
[1734256964273,8.35080568,219.34,219.31,5.09604366]
[1734256964475,8.35080568,219.34,219.32,5.09604366]
[1734256964675,8.35080568,219.34,219.27,6.39080568]
[1734256964870,8.35080568,219.34,219.28,5.0982807]
[1734256965072,8.35080568,219.34,219.29,5.0982807]
[1734256965374,8.35080568,219.34,219.3,5.0982807]
[1734256965571,8.35080568,219.34,219.27,5.58960048]
[1734256965764,8.35080568,219.34,219.28,5.09710882]
[1734256965965,8.35080568,219.34,219.29,5.09710882]
[1734256966177,8.35080568,219.34,219.3,5.09710882]
[1734256966377,8.35080568,219.34,219.27,5.58960048]
[1734256966378,2.2804,219.33,219.27,5.58960048]
[1734256966571,2.2804,219.33,219.28,5.09562557]
[1734256966770,2.2804,219.33,219.29,5.09562557]
[1734256966976,2.2804,219.33,219.27,5.58960048]
[1734256967170,2.2804,219.33,219.28,5.09562034]
[1734256967385,2.2804,219.33,219.27,5.58960048]
[1734256967572,2.2804,219.33,219.28,5.0939589]
[1734256967773,2.2804,219.33,219.29,5.0939589]
[1734256967974,2.2804,219.33,219.3,5.0939589]
[1734256968267,2.2804,219.33,219.27,5.58960048]
[1734256968471,2.2804,219.33,219.28,5.09268565]
[1734256968671,2.2804,219.33,219.29,5.09268565]
[1734256968867,2.2804,219.33,219.3,5.09268565]
[1734256969068,2.2804,219.33,219.27,5.58960048]
[1734256969270,2.2804,219.33,219.28,5.09264632]
[1734256969468,2.2804,219.33,219.29,5.09264632]
[1734256969674,2.2804,219.33,219.27,5.58960048]
[1734256969872,2.2804,219.33,219.28,5.09130349]
[1734256970072,2.2804,219.33,219.29,5.09130349]
[1734256970288,2.2804,219.33,219.27,7.87060048]
[1734256970468,2.2804,219.33,219.28,5.09015309]
[1734256970673,2.2804,219.33,219.29,5.09015309]
[1734256970875,2.2804,219.33,219.28,6.39080568]
[1734256971079,2.2804,219.33,219.29,5.09016417]
[1734256971266,2.2804,219.33,219.28,6.39080568]
[1734256971575,2.2804,219.33,219.29,5.08909716]
[1734256971770,4.2403,219.34,219.28,8.67170568]
[1734256971970,4.2403,219.34,219.29,5.08906817]
[1734256972177,4.2403,219.34,219.28,8.67170568]
[1734256972376,4.2403,219.34,219.29,5.08810833]
[1734256972576,4.2403,219.34,219.28,8.67170568]
[1734256972876,4.2403,219.34,219.29,5.08813377]
[1734256973173,4.2403,219.34,219.28,8.67170568]
[1734256973375,4.2403,219.34,219.29,5.08708094]
[1734256973575,4.2403,219.34,219.28,8.67170568]
[1734256973773,4.2403,219.34,219.29,5.08698817]
[1734256974075,4.2403,219.34,219.3,5.08698817]
[1734256974277,4.2403,219.34,219.28,8.67170568]
[1734256974477,4.2403,219.34,219.29,5.0863412]
[1734256974777,4.2403,219.34,219.28,8.67170568]
[1734256974975,4.2403,219.34,219.29,5.08639291]
[1734256975276,4.2403,219.34,219.28,8.67170568]
[1734256975477,4.2403,219.34,219.29,5.08604281]
[1734256975678,4.2403,219.34,219.28,8.67170568]
[1734256975975,4.2403,219.34,219.29,5.08524326]
[1734256976175,4.2403,219.34,219.28,8.67170568]
[1734256976476,4.2403,219.34,219.29,5.08497701]
[1734256976678,4.2403,219.34,219.28,8.67170568]
[1734256977075,4.2403,219.34,219.29,5.08500616]
[1734256977276,4.2403,219.34,219.28,8.67170568]
[1734256977579,4.2403,219.34,219.29,5.08449542]
[1734256977879,4.2403,219.34,219.28,8.67170568]
[1734256978075,4.2403,219.34,219.29,5.08357965]
[1734256978279,4.2403,219.34,219.28,8.67170568]
[1734256978581,4.2403,219.34,219.29,5.08245975]
[1734256978775,4.2403,219.34,219.28,8.67170568]
[1734256978979,1.4855,219.4,219.3,6.39080568]
[1734256979280,6.39080568,219.38,219.3,6.39080568]
[1734256979779,2.2801,219.36,219.31,5.08095822]
[1734256979979,2.2801,219.36,219.3,6.39080568]
[1734256980188,2.2801,219.36,219.31,5.08083887]
[1734256980373,2.2801,219.36,219.3,6.39080568]
[1734256980578,2.2801,219.36,219.31,5.08061768]
[1734256980779,2.2801,219.36,219.3,6.39080568]
[1734256980974,2.2801,219.36,219.31,5.08063759]
[1734256981179,2.2801,219.36,219.3,6.39080568]
[1734256981380,2.2801,219.36,219.31,5.0803574]
[1734256981572,2.2801,219.36,219.31,2.2806]
[1734256982983,2.2802,219.35,219.31,2.2806]
[1734256983180,6.39080568,219.36,219.29,2.2808]
[1734256983378,6.39080568,219.36,219.3,5.08040761]
[1734256983571,6.39080568,219.36,219.29,2.2808]
[1734256983895,2.2803,219.34,219.3,5.08093327]
[1734256984084,2.2803,219.34,219.28,6.39080568]
[1734256984281,2.2803,219.34,219.3,2.2807]
[1734256995592,2.2803,219.34,219.3,7.6218256]
[1734256996694,8.67100568,219.35,219.3,7.6218256]
[1734256999293,8.67100568,219.35,219.31,5.08167187]
[1734256999497,8.67100568,219.35,219.3,7.6218256]
[1734256999695,8.67100568,219.35,219.31,5.08192145]
[1734256999996,8.67100568,219.35,219.3,7.6218256]
[1734257000188,8.67100568,219.35,219.31,5.08196832]
[1734257000391,8.67100568,219.35,219.3,7.6218256]
[1734257000590,8.67100568,219.35,219.31,5.08285223]
[1734257000788,8.67100568,219.35,219.3,7.6218256]
[1734257000994,8.67100568,219.35,219.31,7.36341611]
[1734257001190,8.67100568,219.35,219.31,2.2806]
[1734257003398,10.63100568,219.35,219.31,2.2806]
[1734257004300,10.63100568,219.35,219.32,5.08833881]
[1734257004501,10.63100568,219.35,219.31,2.2806]
[1734257004808,10.63100568,219.35,219.32,5.08850545]
[1734257005104,10.63100568,219.35,219.31,2.2806]
[1734257005318,10.63100568,219.35,219.32,5.0885572]
[1734257005493,10.63100568,219.35,219.31,2.2806]
[1734257005699,10.63100568,219.35,219.32,5.09016764]
[1734257005899,10.63100568,219.35,219.31,2.2806]
[1734257006101,10.63100568,219.35,219.32,5.09014602]
[1734257006300,4.2402,219.36,219.33,5.09196431]